[Event "Titled Tuesday Blitz October 11 Late 2022"]
[White "Koziorowicz, Michal"]
[Black "Donchenko, Alexander"]
[WhiteFideId "21809194"]
[BlackFideId "24603295"]
[WhiteElo "2220"]
[BlackElo "2572"]
[Result "1/2-1/2"]
[Round "08"]
[TimeControl "180+1"]
[Date "2022.10.11"]
[WhiteClock "0:00:11"]
[BlackClock "0:00:13"]

1. e4 {[%clk 0:03:00]}  c6 {[%clk 0:03:00]} 2. d4 {[%clk 0:03:00]}  d5 {[%clk 0:03:01]} 3. e5 {[%clk 0:03:01]}  Bf5 {[%clk 0:03:01]} 4. h4 {[%clk 0:03:01]}  h5 {[%clk 0:03:01]} 5. c4 {[%clk 0:02:59]}  e6 {[%clk 0:03:01]} 6. Nc3 {[%clk 0:02:59]}  Nd7 {[%clk 0:03:01]} 7. Nge2 {[%clk 0:02:59]}  dxc4 {[%clk 0:02:54]} 8. Ng3 {[%clk 0:03:00]}  Bg6 {[%clk 0:02:54]} 9. Bxc4 {[%clk 0:03:00]}  b5 {[%clk 0:02:52]} 10. Bb3 {[%clk 0:02:58]}  b4 {[%clk 0:02:50]} 11. Nce4 {[%clk 0:02:58]}  Nh6 {[%clk 0:02:44]} 12. Be3 {[%clk 0:02:42]}  Nf5 {[%clk 0:02:42]} 13. Nxf5 {[%clk 0:02:40]}  Bxf5 {[%clk 0:02:43]} 14. Qf3 {[%clk 0:02:38]}  Be7 {[%clk 0:02:34]} 15. Rc1 {[%clk 0:02:38]}  Rc8 {[%clk 0:02:33]} 16. Bg5 {[%clk 0:02:03]}  Bxe4 {[%clk 0:02:31]} 17. Qxe4 {[%clk 0:02:04]}  Bxg5 {[%clk 0:02:29]} 18. hxg5 {[%clk 0:02:05]}  Qxg5 {[%clk 0:02:30]} 19. Rxc6 {[%clk 0:02:06]}  O-O {[%clk 0:02:23]} 20. O-O {[%clk 0:01:53]}  Nb6 {[%clk 0:02:22]} 21. Rxc8 {[%clk 0:01:51]}  Rxc8 {[%clk 0:02:22]} 22. Qb7 {[%clk 0:01:50]}  Rc1 {[%clk 0:02:22]} 23. Qb8+ {[%clk 0:01:32]}  Kh7 {[%clk 0:02:21]} 24. Qxa7 {[%clk 0:01:32]}  Rxf1+ {[%clk 0:02:21]} 25. Kxf1 {[%clk 0:01:33]}  Qc1+ {[%clk 0:02:20]} 26. Ke2 {[%clk 0:01:33]}  Qxb2+ {[%clk 0:02:20]} 27. Kf1 {[%clk 0:01:32]}  Qa1+ {[%clk 0:02:16]} 28. Ke2 {[%clk 0:01:32]}  Qxd4 {[%clk 0:02:11]} 29. Qxf7 {[%clk 0:01:30]}  Qxe5+ {[%clk 0:02:11]} 30. Kf1 {[%clk 0:01:31]}  Qa1+ {[%clk 0:01:34]} 31. Ke2 {[%clk 0:01:30]}  Qb2+ {[%clk 0:01:34]} 32. Kf1 {[%clk 0:01:30]}  Qb1+ {[%clk 0:01:35]} 33. Ke2 {[%clk 0:01:29]}  Qe4+ {[%clk 0:01:35]} 34. Kf1 {[%clk 0:01:28]}  Qd3+ {[%clk 0:01:33]} 35. Kg1 {[%clk 0:01:23]}  Qf5 {[%clk 0:01:27]} 36. Qxe6 {[%clk 0:01:22]}  Qxe6 {[%clk 0:01:27]} 37. Bxe6 {[%clk 0:01:23]}  Kg6 {[%clk 0:01:25]} 38. f3 {[%clk 0:01:16]}  Kf6 {[%clk 0:01:25]} 39. Bb3 {[%clk 0:01:16]}  Ke5 {[%clk 0:01:25]} 40. Kf2 {[%clk 0:01:16]}  h4 {[%clk 0:01:24]} 41. Ke3 {[%clk 0:01:12]}  g5 {[%clk 0:01:23]} 42. Kf2 {[%clk 0:01:09]}  Kf4 {[%clk 0:01:21]} 43. Bf7 {[%clk 0:00:54]}  Nd7 {[%clk 0:01:19]} 44. Bg8 {[%clk 0:00:54]}  Nc5 {[%clk 0:01:16]} 45. Bb3 {[%clk 0:00:53]}  Nd3+ {[%clk 0:01:16]} 46. Ke2 {[%clk 0:00:51]}  Nc1+ {[%clk 0:01:15]} 47. Kf2 {[%clk 0:00:51]}  Nd3+ {[%clk 0:00:56]} 48. Ke2 {[%clk 0:00:51]}  Ne5 {[%clk 0:00:56]} 49. Kf2 {[%clk 0:00:44]}  Nc6 {[%clk 0:00:42]} 50. Bd5 {[%clk 0:00:43]}  Nd4 {[%clk 0:00:42]} 51. Bb3 {[%clk 0:00:43]}  Nb5 {[%clk 0:00:41]} 52. Bc4 {[%clk 0:00:42]}  Nc3 {[%clk 0:00:39]} 53. Bb3 {[%clk 0:00:42]}  g4 {[%clk 0:00:29]} 54. fxg4 {[%clk 0:00:41]}  Ne4+ {[%clk 0:00:29]} 55. Kg1 {[%clk 0:00:39]}  Kxg4 {[%clk 0:00:29]} 56. Kh2 {[%clk 0:00:39]}  Ng5 {[%clk 0:00:26]} 57. Bc4 {[%clk 0:00:39]}  Kf4 {[%clk 0:00:25]} 58. Bb3 {[%clk 0:00:38]}  Ke3 {[%clk 0:00:23]} 59. g3 {[%clk 0:00:35]}  Nf3+ {[%clk 0:00:19]} 60. Kh3 {[%clk 0:00:35]}  hxg3 {[%clk 0:00:20]} 61. Kxg3 {[%clk 0:00:36]}  Nd2 {[%clk 0:00:17]} 62. Bg8 {[%clk 0:00:36]}  Ne4+ {[%clk 0:00:14]} 63. Kg2 {[%clk 0:00:35]}  Kd2 {[%clk 0:00:12]} 64. Kf3 {[%clk 0:00:35]}  Nc3 {[%clk 0:00:12]} 65. Bb3 {[%clk 0:00:17]}  Kc1 {[%clk 0:00:11]} 66. Ke3 {[%clk 0:00:17]}  Kb2 {[%clk 0:00:11]} 67. Kd2 {[%clk 0:00:18]}  Nxa2 {[%clk 0:00:11]} 68. Bc2 {[%clk 0:00:15]}  Nc3 {[%clk 0:00:08]} 69. Bh7 {[%clk 0:00:13]}  Nb1+ {[%clk 0:00:04]} 70. Kd1 {[%clk 0:00:12]}  Na3 {[%clk 0:00:03]} 71. Bg8 {[%clk 0:00:11]}  Nb5 {[%clk 0:00:03]} 72. Kd2 {[%clk 0:00:11]}  Nd4 {[%clk 0:00:03]} 73. Bf7 {[%clk 0:00:10]}  Nf3+ {[%clk 0:00:03]} 74. Kd1 {[%clk 0:00:10]}  Ne5 {[%clk 0:00:04]} 75. Bg8 {[%clk 0:00:10]}  Kc3 {[%clk 0:00:05]} 76. Kc1 {[%clk 0:00:10]}  Nd3+ {[%clk 0:00:05]} 77. Kb1 {[%clk 0:00:10]}  Nc5 {[%clk 0:00:05]} 78. Bh7 {[%clk 0:00:10]}  Nb3 {[%clk 0:00:06]} 79. Bg8 {[%clk 0:00:09]}  Nc5 {[%clk 0:00:06]} 80. Ka2 {[%clk 0:00:09]}  Nd3 {[%clk 0:00:04]} 81. Bf7 {[%clk 0:00:08]}  Ne5 {[%clk 0:00:04]} 82. Bg8 {[%clk 0:00:08]}  Nc6 {[%clk 0:00:05]} 83. Bf7 {[%clk 0:00:08]}  Nd4 {[%clk 0:00:05]} 84. Bg8 {[%clk 0:00:08]}  Ne2 {[%clk 0:00:06]} 85. Bf7 {[%clk 0:00:08]}  Nc1+ {[%clk 0:00:06]} 86. Kb1 {[%clk 0:00:08]}  Nd3 {[%clk 0:00:07]} 87. Ka2 {[%clk 0:00:08]}  Ne5 {[%clk 0:00:07]} 88. Bg8 {[%clk 0:00:09]}  Nc4 {[%clk 0:00:07]} 89. Bxc4 {[%clk 0:00:09]}  Kxc4 {[%clk 0:00:08]} 90. Kb2 {[%clk 0:00:09]}  b3 {[%clk 0:00:09]} 91. Kb1 {[%clk 0:00:10]}  Kc3 {[%clk 0:00:09]} 92. Kc1 {[%clk 0:00:10]}  Kb4 {[%clk 0:00:10]} 93. Kb2 {[%clk 0:00:10]}  Ka4 {[%clk 0:00:10]} 94. Kb1 {[%clk 0:00:11]}  Ka3 {[%clk 0:00:11]} 95. Ka1 {[%clk 0:00:11]}  b2+ {[%clk 0:00:12]} 96. Kb1 {[%clk 0:00:11]}  Kb3 {[%clk 0:00:13]} 1/2-1/2


[Site "https://www.chess.com"]

[Event "Titled Tuesday Blitz October 11 Late 2022"]
[White "Krzywda, Andrzej"]
[Black "Kaganskiy, Gleb"]
[WhiteFideId "1114565"]
[BlackFideId "4132025"]
[WhiteElo "2149"]
[BlackElo "2165"]
[Result "1/2-1/2"]
[Round "08"]
[TimeControl "180+1"]
[Date "2022.10.12"]
[WhiteClock "0:00:11"]
[BlackClock "0:00:10"]

1. d4 {[%clk 0:03:00]}  d5 {[%clk 0:02:57]} 2. Nf3 {[%clk 0:03:00]}  Nf6 {[%clk 0:02:55]} 3. c4 {[%clk 0:03:00]}  e6 {[%clk 0:02:43]} 4. e3 {[%clk 0:03:00]}  c5 {[%clk 0:02:41]} 5. Nc3 {[%clk 0:02:55]}  a6 {[%clk 0:02:38]} 6. cxd5 {[%clk 0:02:53]}  exd5 {[%clk 0:02:20]} 7. dxc5 {[%clk 0:02:43]}  Bxc5 {[%clk 0:02:18]} 8. Be2 {[%clk 0:02:41]}  O-O {[%clk 0:02:14]} 9. O-O {[%clk 0:02:41]}  Ba7 {[%clk 0:02:14]} 10. b3 {[%clk 0:02:41]}  Nc6 {[%clk 0:02:14]} 11. Bb2 {[%clk 0:02:41]}  d4 {[%clk 0:02:13]} 12. exd4 {[%clk 0:02:40]}  Nxd4 {[%clk 0:02:12]} 13. Nxd4 {[%clk 0:02:39]}  Bxd4 {[%clk 0:02:09]} 14. Bf3 {[%clk 0:02:35]}  Rb8 {[%clk 0:01:50]} 15. Na4 {[%clk 0:02:24]}  Bxb2 {[%clk 0:01:48]} 16. Nxb2 {[%clk 0:02:25]}  Be6 {[%clk 0:01:42]} 17. Rc1 {[%clk 0:02:18]}  Bd5 {[%clk 0:01:34]} 18. Nc4 {[%clk 0:02:16]}  Bxc4 {[%clk 0:01:24]} 19. Rxc4 {[%clk 0:02:14]}  b5 {[%clk 0:01:16]} 20. Rd4 {[%clk 0:02:12]}  Qc7 {[%clk 0:01:12]} 21. Qd2 {[%clk 0:01:56]}  Rfd8 {[%clk 0:01:09]} 22. Rd1 {[%clk 0:01:56]}  Rxd4 {[%clk 0:01:09]} 23. Qxd4 {[%clk 0:01:57]}  h6 {[%clk 0:01:03]} 24. Qd6 {[%clk 0:01:52]}  Qxd6 {[%clk 0:00:41]} 25. Rxd6 {[%clk 0:01:53]}  Rc8 {[%clk 0:00:41]} 26. g3 {[%clk 0:01:41]}  a5 {[%clk 0:00:41]} 27. Ra6 {[%clk 0:01:33]}  Rc3 {[%clk 0:00:34]} 28. Kg2 {[%clk 0:01:32]}  a4 {[%clk 0:00:31]} 29. bxa4 {[%clk 0:01:29]}  b4 {[%clk 0:00:31]} 30. Rb6 {[%clk 0:01:25]}  Ra3 {[%clk 0:00:30]} 31. Rxb4 {[%clk 0:01:15]}  Rxa2 {[%clk 0:00:30]} 32. h4 {[%clk 0:01:15]}  h5 {[%clk 0:00:29]} 33. Rb8+ {[%clk 0:00:53]}  Kh7 {[%clk 0:00:29]} 34. Ra8 {[%clk 0:00:53]}  Ng4 {[%clk 0:00:24]} 35. Bxg4 {[%clk 0:00:46]}  hxg4 {[%clk 0:00:25]} 36. Ra6 {[%clk 0:00:45]}  g6 {[%clk 0:00:22]} 37. Ra5 {[%clk 0:00:44]}  Kg7 {[%clk 0:00:18]} 38. Kf1 {[%clk 0:00:39]}  Kg8 {[%clk 0:00:13]} 39. Ke1 {[%clk 0:00:38]}  Kg7 {[%clk 0:00:13]} 40. Ra7 {[%clk 0:00:37]}  Kf6 {[%clk 0:00:11]} 41. Ra5 {[%clk 0:00:34]}  Kg7 {[%clk 0:00:11]} 42. Ra8 {[%clk 0:00:35]}  Kf6 {[%clk 0:00:11]} 43. a5 {[%clk 0:00:35]}  Kg7 {[%clk 0:00:10]} 44. a6 {[%clk 0:00:36]}  Kf6 {[%clk 0:00:10]} 45. Kf1 {[%clk 0:00:32]}  Kg7 {[%clk 0:00:10]} 46. Kg2 {[%clk 0:00:33]}  Kf6 {[%clk 0:00:10]} 47. Ra7 {[%clk 0:00:33]}  Kg7 {[%clk 0:00:10]} 48. Kf1 {[%clk 0:00:34]}  Kf6 {[%clk 0:00:10]} 49. Ke1 {[%clk 0:00:35]}  Kg7 {[%clk 0:00:10]} 50. Ra8 {[%clk 0:00:33]}  Kf6 {[%clk 0:00:11]} 51. a7 {[%clk 0:00:21]}  Kg7 {[%clk 0:00:10]} 52. Kd1 {[%clk 0:00:20]}  Kf6 {[%clk 0:00:10]} 53. Kc1 {[%clk 0:00:20]}  Kg7 {[%clk 0:00:10]} 54. Kb1 {[%clk 0:00:20]}  Ra6 {[%clk 0:00:11]} 55. Kb2 {[%clk 0:00:21]}  Ra5 {[%clk 0:00:11]} 56. Kb3 {[%clk 0:00:21]}  Ra6 {[%clk 0:00:11]} 57. Kb4 {[%clk 0:00:21]}  Ra1 {[%clk 0:00:12]} 58. Kb5 {[%clk 0:00:21]}  Ra2 {[%clk 0:00:12]} 59. Kb6 {[%clk 0:00:21]}  Rb2+ {[%clk 0:00:12]} 60. Kc7 {[%clk 0:00:21]}  Rc2+ {[%clk 0:00:12]} 61. Kb6 {[%clk 0:00:20]}  Rb2+ {[%clk 0:00:12]} 62. Kc5 {[%clk 0:00:20]}  Rc2+ {[%clk 0:00:12]} 63. Kd6 {[%clk 0:00:21]}  Rd2+ {[%clk 0:00:12]} 64. Ke5 {[%clk 0:00:21]}  Ra2 {[%clk 0:00:13]} 65. Kf4 {[%clk 0:00:12]}  Ra4+ {[%clk 0:00:12]} 66. Ke3 {[%clk 0:00:13]}  Ra3+ {[%clk 0:00:12]} 67. Kd2 {[%clk 0:00:13]}  Ra2+ {[%clk 0:00:12]} 68. Kc3 {[%clk 0:00:13]}  Ra6 {[%clk 0:00:12]} 69. Kb4 {[%clk 0:00:13]}  Ra1 {[%clk 0:00:12]} 70. Kc5 {[%clk 0:00:13]}  Rc1+ {[%clk 0:00:12]} 71. Kb6 {[%clk 0:00:14]}  Rb1+ {[%clk 0:00:12]} 72. Kc7 {[%clk 0:00:14]}  Ra1 {[%clk 0:00:12]} 73. Kb7 {[%clk 0:00:13]}  Rb1+ {[%clk 0:00:12]} 74. Kc8 {[%clk 0:00:13]}  Ra1 {[%clk 0:00:13]} 75. Kd7 {[%clk 0:00:12]}  Ra2 {[%clk 0:00:13]} 76. Ke7 {[%clk 0:00:11]}  Re2+ {[%clk 0:00:11]} 77. Kd6 {[%clk 0:00:12]}  Rd2+ {[%clk 0:00:11]} 78. Ke5 {[%clk 0:00:12]}  Ra2 {[%clk 0:00:10]} 79. Kd4 {[%clk 0:00:11]}  Rd2+ {[%clk 0:00:09]} 80. Ke3 {[%clk 0:00:11]}  Ra2 {[%clk 0:00:10]} 81. Kf4 {[%clk 0:00:11]}  Ra4+ {[%clk 0:00:10]} 82. Ke3 {[%clk 0:00:11]}  Ra3+ {[%clk 0:00:10]} 83. Ke2 {[%clk 0:00:11]}  Ra2+ {[%clk 0:00:10]} 84. Ke3 {[%clk 0:00:11]}  Ra3+ {[%clk 0:00:10]} 1/2-1/2


[Site "https://www.chess.com"]

[Event "Titled Tuesday Blitz October 11 Late 2022"]
[White "Lazavik, Denis"]
[Black "Svane, Rasmus"]
[WhiteFideId "13515110"]
[BlackFideId "4657101"]
[WhiteElo "2437"]
[BlackElo "2674"]
[Result "1/2-1/2"]
[Round "08"]
[TimeControl "180+1"]
[Date "2022.10.11"]
[WhiteClock "0:00:07"]
[BlackClock "0:00:13"]

1. d4 {[%clk 0:03:00]}  Nf6 {[%clk 0:03:00]} 2. c4 {[%clk 0:03:01]}  e6 {[%clk 0:03:00]} 3. Nf3 {[%clk 0:03:02]}  d5 {[%clk 0:03:00]} 4. g3 {[%clk 0:03:02]}  Be7 {[%clk 0:02:59]} 5. Bg2 {[%clk 0:03:03]}  O-O {[%clk 0:03:00]} 6. O-O {[%clk 0:03:03]}  dxc4 {[%clk 0:03:00]} 7. Qc2 {[%clk 0:03:04]}  a6 {[%clk 0:03:00]} 8. a4 {[%clk 0:03:04]}  Bd7 {[%clk 0:03:01]} 9. Qxc4 {[%clk 0:03:04]}  Bc6 {[%clk 0:03:01]} 10. Bg5 {[%clk 0:03:03]}  Nbd7 {[%clk 0:03:01]} 11. Nc3 {[%clk 0:03:03]}  h6 {[%clk 0:03:01]} 12. Bxf6 {[%clk 0:03:03]}  Nxf6 {[%clk 0:03:02]} 13. Rfd1 {[%clk 0:03:03]}  a5 {[%clk 0:03:01]} 14. Ne5 {[%clk 0:03:02]}  Bxg2 {[%clk 0:02:42]} 15. Kxg2 {[%clk 0:03:03]}  c6 {[%clk 0:02:43]} 16. e3 {[%clk 0:03:02]}  Nd7 {[%clk 0:02:41]} 17. Nf3 {[%clk 0:03:00]}  Qb6 {[%clk 0:02:39]} 18. Qe2 {[%clk 0:03:00]}  Rfd8 {[%clk 0:02:35]} 19. h4 {[%clk 0:02:59]}  Rac8 {[%clk 0:02:33]} 20. Rac1 {[%clk 0:02:58]}  Nf6 {[%clk 0:02:31]} 21. Ne5 {[%clk 0:02:56]}  Nd7 {[%clk 0:02:18]} 22. Nd3 {[%clk 0:02:49]}  Nf6 {[%clk 0:02:15]} 23. Qc2 {[%clk 0:02:45]}  Nd5 {[%clk 0:02:11]} 24. Ne4 {[%clk 0:02:42]}  Nb4 {[%clk 0:02:09]} 25. Qb3 {[%clk 0:02:40]}  Qc7 {[%clk 0:02:00]} 26. Ne5 {[%clk 0:02:38]}  Bd6 {[%clk 0:01:57]} 27. Nf3 {[%clk 0:02:25]}  Bf8 {[%clk 0:01:54]} 28. Qc4 {[%clk 0:02:20]}  b6 {[%clk 0:01:54]} 29. Qe2 {[%clk 0:02:04]}  Qb7 {[%clk 0:01:49]} 30. Nc3 {[%clk 0:02:04]}  c5 {[%clk 0:01:48]} 31. Kg1 {[%clk 0:01:53]}  cxd4 {[%clk 0:01:40]} 32. Nxd4 {[%clk 0:01:54]}  Rd7 {[%clk 0:01:37]} 33. Qf3 {[%clk 0:01:31]}  Qxf3 {[%clk 0:01:34]} 34. Nxf3 {[%clk 0:01:32]}  Rdc7 {[%clk 0:01:29]} 35. Kf1 {[%clk 0:01:22]}  Be7 {[%clk 0:01:27]} 36. Nd4 {[%clk 0:01:06]}  Bf6 {[%clk 0:01:25]} 37. Ndb5 {[%clk 0:01:07]}  Rc5 {[%clk 0:01:19]} 38. Nd6 {[%clk 0:00:57]}  R8c7 {[%clk 0:01:05]} 39. Nde4 {[%clk 0:00:55]}  R5c6 {[%clk 0:01:04]} 40. Nxf6+ {[%clk 0:00:50]}  gxf6 {[%clk 0:01:05]} 41. Rb1 {[%clk 0:00:50]}  f5 {[%clk 0:01:04]} 42. Ke2 {[%clk 0:00:50]}  Kg7 {[%clk 0:01:02]} 43. Rd2 {[%clk 0:00:50]}  Na6 {[%clk 0:00:56]} 44. Nb5 {[%clk 0:00:49]}  Re7 {[%clk 0:00:54]} 45. Rbd1 {[%clk 0:00:43]}  Nc7 {[%clk 0:00:51]} 46. Rd6 {[%clk 0:00:36]}  Rc2+ {[%clk 0:00:45]} 47. R1d2 {[%clk 0:00:36]}  Rxd2+ {[%clk 0:00:45]} 48. Kxd2 {[%clk 0:00:35]}  Nxb5 {[%clk 0:00:41]} 49. axb5 {[%clk 0:00:36]}  Rb7 {[%clk 0:00:42]} 50. Kd3 {[%clk 0:00:34]}  Kf6 {[%clk 0:00:42]} 51. Kd4 {[%clk 0:00:34]}  Ke7 {[%clk 0:00:41]} 52. Rc6 {[%clk 0:00:35]}  Kf6 {[%clk 0:00:41]} 53. e4 {[%clk 0:00:32]}  fxe4 {[%clk 0:00:41]} 54. Kxe4 {[%clk 0:00:33]}  Rd7 {[%clk 0:00:34]} 55. Ke3 {[%clk 0:00:28]}  Rb7 {[%clk 0:00:31]} 56. g4 {[%clk 0:00:26]}  Kg6 {[%clk 0:00:29]} 57. f4 {[%clk 0:00:25]}  Kf6 {[%clk 0:00:23]} 58. h5 {[%clk 0:00:23]}  Ke7 {[%clk 0:00:19]} 59. g5 {[%clk 0:00:23]}  Kf8 {[%clk 0:00:16]} 60. Ke4 {[%clk 0:00:21]}  Kg7 {[%clk 0:00:16]} 61. Ke5 {[%clk 0:00:10]}  hxg5 {[%clk 0:00:16]} 62. fxg5 {[%clk 0:00:11]}  Rd7 {[%clk 0:00:17]} 63. Rxb6 {[%clk 0:00:10]}  Rd5+ {[%clk 0:00:17]} 64. Kf4 {[%clk 0:00:10]}  Rd4+ {[%clk 0:00:18]} 65. Kf3 {[%clk 0:00:09]}  Rb4 {[%clk 0:00:18]} 66. Rb7 {[%clk 0:00:10]}  Kg8 {[%clk 0:00:16]} 67. g6 {[%clk 0:00:09]}  fxg6 {[%clk 0:00:16]} 68. hxg6 {[%clk 0:00:09]}  a4 {[%clk 0:00:14]} 69. b6 {[%clk 0:00:08]}  Rxb2 {[%clk 0:00:14]} 70. Kf4 {[%clk 0:00:05]}  a3 {[%clk 0:00:14]} 71. Kg5 {[%clk 0:00:04]}  a2 {[%clk 0:00:14]} 72. Ra7 {[%clk 0:00:05]}  Rxb6 {[%clk 0:00:08]} 73. Ra8+ {[%clk 0:00:05]}  Kg7 {[%clk 0:00:08]} 74. Ra7+ {[%clk 0:00:05]}  Kg8 {[%clk 0:00:08]} 75. Rxa2 {[%clk 0:00:05]}  Rb8 {[%clk 0:00:07]} 76. Ra7 {[%clk 0:00:04]}  e5 {[%clk 0:00:07]} 77. Re7 {[%clk 0:00:04]}  e4 {[%clk 0:00:08]} 78. Rxe4 {[%clk 0:00:04]}  Kg7 {[%clk 0:00:09]} 79. Re7+ {[%clk 0:00:04]}  Kg8 {[%clk 0:00:09]} 80. Kf6 {[%clk 0:00:04]}  Rb6+ {[%clk 0:00:09]} 81. Re6 {[%clk 0:00:04]}  Rb8 {[%clk 0:00:10]} 82. Kg5 {[%clk 0:00:04]}  Rc8 {[%clk 0:00:10]} 83. Rf6 {[%clk 0:00:05]}  Rb8 {[%clk 0:00:11]} 84. Kh6 {[%clk 0:00:05]}  Rc8 {[%clk 0:00:11]} 85. g7 {[%clk 0:00:06]}  Rb8 {[%clk 0:00:12]} 86. Rf8+ {[%clk 0:00:06]}  Rxf8 {[%clk 0:00:12]} 87. gxf8=Q+ {[%clk 0:00:07]}  Kxf8 {[%clk 0:00:13]} 1/2-1/2


[Site "https://www.chess.com"]

[Event "Titled Tuesday Blitz October 11 Late 2022"]
[White "Leschinsky, Gary"]
[Black "Osmonbekov, Talaibek"]
[WhiteFideId "30951321"]
[BlackFideId "2017253"]
[WhiteElo "1855"]
[BlackElo "2135"]
[Result "0-1"]
[Round "08"]
[TimeControl "180+1"]
[Date "2022.10.12"]
[WhiteClock "0:01:02"]
[BlackClock "0:00:32"]

1. c4 {[%clk 0:03:00]}  e5 {[%clk 0:02:58]} 2. Nc3 {[%clk 0:03:00]}  d6 {[%clk 0:02:59]} 3. Nf3 {[%clk 0:03:00]}  f5 {[%clk 0:02:59]} 4. e3 {[%clk 0:03:00]}  Nf6 {[%clk 0:02:59]} 5. d4 {[%clk 0:03:01]}  e4 {[%clk 0:02:59]} 6. Ng5 {[%clk 0:02:59]}  c6 {[%clk 0:02:50]} 7. f3 {[%clk 0:02:59]}  d5 {[%clk 0:02:48]} 8. Nh3 {[%clk 0:02:51]}  Be6 {[%clk 0:02:47]} 9. Nf4 {[%clk 0:02:50]}  Bf7 {[%clk 0:02:47]} 10. Qb3 {[%clk 0:02:48]}  Qd7 {[%clk 0:02:40]} 11. h4 {[%clk 0:02:45]}  Bd6 {[%clk 0:02:35]} 12. Bd2 {[%clk 0:02:43]}  O-O {[%clk 0:02:33]} 13. c5 {[%clk 0:02:42]}  Be7 {[%clk 0:02:18]} 14. Be2 {[%clk 0:02:37]}  Re8 {[%clk 0:02:11]} 15. O-O-O {[%clk 0:02:36]}  b6 {[%clk 0:02:10]} 16. cxb6 {[%clk 0:02:34]}  axb6 {[%clk 0:02:10]} 17. Qxb6 {[%clk 0:02:34]}  Na6 {[%clk 0:02:08]} 18. Bxa6 {[%clk 0:02:28]}  Reb8 {[%clk 0:02:07]} 19. Qa5 {[%clk 0:02:28]}  Bd8 {[%clk 0:01:51]} 20. Qa4 {[%clk 0:02:23]}  Rb6 {[%clk 0:01:51]} 21. g4 {[%clk 0:02:12]}  exf3 {[%clk 0:01:38]} 22. gxf5 {[%clk 0:02:10]}  Rbxa6 {[%clk 0:01:36]} 23. Qc2 {[%clk 0:02:09]}  Ne4 {[%clk 0:01:29]} 24. Nxe4 {[%clk 0:02:07]}  dxe4 {[%clk 0:01:27]} 25. a3 {[%clk 0:02:03]}  Qxf5 {[%clk 0:01:11]} 26. h5 {[%clk 0:02:02]}  Be7 {[%clk 0:01:06]} 27. Bc3 {[%clk 0:01:58]}  Rb8 {[%clk 0:01:00]} 28. Rdf1 {[%clk 0:01:52]}  Bg5 {[%clk 0:00:52]} 29. Rxf3 {[%clk 0:01:50]}  Bb3 {[%clk 0:00:48]} 30. Qb1 {[%clk 0:01:43]}  Bc4 {[%clk 0:00:46]} 31. Qc2 {[%clk 0:01:24]}  Bd3 {[%clk 0:00:40]} 32. Nxd3 {[%clk 0:01:18]}  Qxf3 {[%clk 0:00:40]} 33. Ne5 {[%clk 0:01:15]}  Qxh1+ {[%clk 0:00:39]} 34. Kd2 {[%clk 0:01:07]}  Qg2+ {[%clk 0:00:34]} 35. Kd1 {[%clk 0:01:06]}  Qxc2+ {[%clk 0:00:31]} 36. Kxc2 {[%clk 0:01:02]}  Bxe3 {[%clk 0:00:32]} 0-1


[Site "https://www.chess.com"]

[Event "Titled Tuesday Blitz October 11 Late 2022"]
[White "Machidon, Cristi"]
[Black "Sohal, Tanraj"]
[WhiteFideId "13904590"]
[BlackFideId "2608499"]
[WhiteElo "2663"]
[BlackElo "2513"]
[Result "0-1"]
[Round "08"]
[TimeControl "180+1"]
[Date "2022.10.12"]
[WhiteClock "0:01:42"]
[BlackClock "0:01:17"]

1. d4 {[%clk 0:03:00]}  d5 {[%clk 0:02:59]} 2. c4 {[%clk 0:03:01]}  e6 {[%clk 0:02:58]} 3. Nc3 {[%clk 0:03:01]}  Nf6 {[%clk 0:02:59]} 4. cxd5 {[%clk 0:03:01]}  exd5 {[%clk 0:02:59]} 5. Bg5 {[%clk 0:03:01]}  Be7 {[%clk 0:02:59]} 6. e3 {[%clk 0:03:00]}  O-O {[%clk 0:02:58]} 7. Qc2 {[%clk 0:02:59]}  c6 {[%clk 0:02:58]} 8. Bd3 {[%clk 0:02:59]}  g6 {[%clk 0:02:59]} 9. Nf3 {[%clk 0:02:54]}  Re8 {[%clk 0:02:58]} 10. O-O {[%clk 0:02:51]}  Nbd7 {[%clk 0:02:58]} 11. Rab1 {[%clk 0:02:51]}  a5 {[%clk 0:02:56]} 12. a3 {[%clk 0:02:51]}  Nf8 {[%clk 0:02:57]} 13. Ne5 {[%clk 0:02:38]}  N6d7 {[%clk 0:02:53]} 14. Bxe7 {[%clk 0:02:35]}  Qxe7 {[%clk 0:02:51]} 15. Nf3 {[%clk 0:02:32]}  Ne6 {[%clk 0:02:49]} 16. Rfc1 {[%clk 0:02:26]}  Nf6 {[%clk 0:02:37]} 17. Na4 {[%clk 0:02:24]}  Ng7 {[%clk 0:02:36]} 18. Nb6 {[%clk 0:02:22]}  Ra7 {[%clk 0:02:36]} 19. b4 {[%clk 0:02:22]}  axb4 {[%clk 0:02:35]} 20. axb4 {[%clk 0:02:23]}  Bf5 {[%clk 0:02:35]} 21. b5 {[%clk 0:02:19]}  Bxd3 {[%clk 0:02:02]} 22. Qxd3 {[%clk 0:02:20]}  Ra3 {[%clk 0:02:01]} 23. Rb3 {[%clk 0:02:12]}  Rxb3 {[%clk 0:01:56]} 24. Qxb3 {[%clk 0:02:13]}  Nf5 {[%clk 0:01:44]} 25. bxc6 {[%clk 0:02:06]}  bxc6 {[%clk 0:01:39]} 26. Rxc6 {[%clk 0:02:06]}  Qa7 {[%clk 0:01:20]} 27. Rxf6 {[%clk 0:01:42]}  Qa1+ {[%clk 0:01:17]} 0-1


[Site "https://www.chess.com"]

[Event "Titled Tuesday Blitz October 11 Late 2022"]
[White "Matinian, Nikita"]
[Black "Yurovskykh, Oleksandr"]
[WhiteFideId "24129100"]
[BlackFideId "14134020"]
[WhiteElo "2700"]
[BlackElo "2555"]
[Result "1-0"]
[Round "08"]
[TimeControl "180+1"]
[Date "2022.10.12"]
[WhiteClock "0:01:21"]
[BlackClock "0:00:25"]

1. e4 {[%clk 0:03:00]}  e6 {[%clk 0:02:56]} 2. d4 {[%clk 0:03:00]}  d5 {[%clk 0:02:56]} 3. Nc3 {[%clk 0:03:01]}  dxe4 {[%clk 0:02:56]} 4. Nxe4 {[%clk 0:03:01]}  Bd7 {[%clk 0:02:57]} 5. Nf3 {[%clk 0:03:01]}  Bc6 {[%clk 0:02:57]} 6. Bd3 {[%clk 0:03:02]}  Nd7 {[%clk 0:02:57]} 7. O-O {[%clk 0:02:58]}  Ngf6 {[%clk 0:02:57]} 8. Ng3 {[%clk 0:02:59]}  g6 {[%clk 0:02:57]} 9. Bg5 {[%clk 0:02:50]}  Bg7 {[%clk 0:02:49]} 10. Ne5 {[%clk 0:02:50]}  h6 {[%clk 0:02:40]} 11. Nxc6 {[%clk 0:02:50]}  bxc6 {[%clk 0:02:40]} 12. Bd2 {[%clk 0:02:46]}  O-O {[%clk 0:02:27]} 13. Qf3 {[%clk 0:02:46]}  c5 {[%clk 0:02:24]} 14. Bc3 {[%clk 0:02:20]}  cxd4 {[%clk 0:02:18]} 15. Bxd4 {[%clk 0:02:20]}  Nd5 {[%clk 0:02:15]} 16. Bxg7 {[%clk 0:02:19]}  Kxg7 {[%clk 0:02:16]} 17. a3 {[%clk 0:02:17]}  Qf6 {[%clk 0:02:16]} 18. Qxf6+ {[%clk 0:02:17]}  N7xf6 {[%clk 0:02:16]} 19. Rfd1 {[%clk 0:02:17]}  Rfd8 {[%clk 0:02:15]} 20. Ne4 {[%clk 0:02:13]}  Nxe4 {[%clk 0:02:10]} 21. Bxe4 {[%clk 0:02:13]}  Rab8 {[%clk 0:02:10]} 22. Rab1 {[%clk 0:02:08]}  Nb6 {[%clk 0:01:59]} 23. b3 {[%clk 0:02:05]}  Kf6 {[%clk 0:01:57]} 24. f4 {[%clk 0:02:03]}  a5 {[%clk 0:01:56]} 25. a4 {[%clk 0:02:02]}  Ke7 {[%clk 0:01:55]} 26. Kf2 {[%clk 0:02:02]}  Rxd1 {[%clk 0:01:54]} 27. Rxd1 {[%clk 0:02:03]}  Rd8 {[%clk 0:01:54]} 28. Rxd8 {[%clk 0:02:03]}  Kxd8 {[%clk 0:01:55]} 29. g4 {[%clk 0:02:00]}  g5 {[%clk 0:01:47]} 30. Kf3 {[%clk 0:01:58]}  Ke7 {[%clk 0:01:46]} 31. c3 {[%clk 0:01:47]}  c5 {[%clk 0:01:45]} 32. Bc2 {[%clk 0:01:47]}  gxf4 {[%clk 0:01:34]} 33. Kxf4 {[%clk 0:01:47]}  Nd5+ {[%clk 0:01:34]} 34. Ke4 {[%clk 0:01:44]}  Nxc3+ {[%clk 0:01:34]} 35. Kd3 {[%clk 0:01:44]}  Nd5 {[%clk 0:01:35]} 36. Bb1 {[%clk 0:01:39]}  Kd6 {[%clk 0:01:34]} 37. h4 {[%clk 0:01:32]}  f6 {[%clk 0:01:31]} 38. Kc4 {[%clk 0:01:28]}  Ne3+ {[%clk 0:00:36]} 39. Kb5 {[%clk 0:01:28]}  Nxg4 {[%clk 0:00:36]} 40. Kxa5 {[%clk 0:01:29]}  Nf2 {[%clk 0:00:34]} 41. Kb6 {[%clk 0:01:27]}  Kd7 {[%clk 0:00:28]} 42. a5 {[%clk 0:01:22]}  Kc8 {[%clk 0:00:28]} 43. Kxc5 {[%clk 0:01:21]}  Kb7 {[%clk 0:00:27]} 44. b4 {[%clk 0:01:21]}  f5 {[%clk 0:00:26]} 45. b5 {[%clk 0:01:21]}  Ng4 {[%clk 0:00:25]} 46. Ba2 {[%clk 0:01:21]}  e5 {[%clk 0:00:24]} 47. Bd5+ {[%clk 0:01:21]}  Kb8 {[%clk 0:00:25]} 1-0


[Site "https://www.chess.com"]